bitfinex-derivatives/quotes_ETHF0:USTF0_20251203
["timestamp","ask_amount","ask_price","bid_price","bid_amount"]
[1764804776235,0.9552,3184.5,3184.4,1.9508]
[1764804776436,0.95884575,3184.6,3184.5,2.5329]
[1764804776937,1.94844575,3184.6,3184.5,2.5329]
[1764804777333,2.25621497,3184.6,3184.5,1.9508]
[1764804778644,1.26661497,3184.6,3184.5,2.5329]
[1764804779439,2.25621497,3184.6,3184.5,0.9574]
[1764804779641,0.9552,3184.3,3184.2,3.8313907]
[1764804780143,1.94844575,3184.6,3184.5,1.9508]
[1764804780344,2.25674231,3184.6,3184.5,1.9508]
[1764804780542,2.19253301,3184.6,3184.4,1.9508]
[1764804780743,2.82269656,3184.5,3184.4,2.539]
[1764804780947,1.9448,3184.2,3184.1,0.00470995]
[1764804781245,4.13368726,3184.2,3184.1,0.00470995]
[1764804782246,1.9448,3183.7,3183.6,0.84202394]
[1764804782437,1.9448,3183.6,3183.5,1.79942394]
[1764804782634,1.9448,3183.6,3183.5,0.84202394]
[1764804782945,1.9448,3183.4,3183.3,2.79282394]
[1764804783947,5.1526,3183.4,3183.3,2.79282394]
[1764804784536,4.163,3183.4,3183.3,2.79282394]
[1764804784735,3.2078,3183.4,3183.3,4.67341464]
[1764804784948,5.2243,3183.4,3183.3,1.79942394]
[1764804785139,5.2243,3183.4,3183.3,0.9574]
[1764804786040,5.2243,3183.4,3183.3,1.9168]
[1764804787538,2.0165,3183.4,3183.3,1.9168]
[1764804787744,0.993,3183.4,3183.3,2.75882394]
[1764804788148,2.0165,3183.4,3183.3,2.75882394]
[1764804788446,2.0165,3183.4,3183.3,1.9168]
[1764804789052,0.993,3183.4,3183.3,1.9168]
[1764804789242,5.2243,3183.8,3183.7,0.9838]
[1764804789549,5.53257849,3183.8,3183.7,0.9838]
[1764804790443,2.0165,3183.3,3183.2,2.78522394]
[1764804791149,2.0165,3183.3,3183.2,1.9432]
[1764804792347,2.0165,3183.1,3183.0,2.92233389]
[1764804792553,2.32403629,3183.1,3183.0,2.08030995]
[1764804793050,2.0165,3182.4,3182.1,0.84202394]
[1764804793349,2.0165,3182.1,3182.0,1.5784]
[1764804793550,4.2008,3182.3,3182.2,1.9432]
[1764804793751,4.50790889,3182.3,3182.2,1.9432]
[1764804794147,0.30991518,3182.3,3182.2,1.94540272]
[1764804794352,0.00280629,3182.3,3182.2,1.94540272]
[1764804796152,0.00470995,3182.6,3182.5,2.5378]
[1764804797253,0.00877355,3182.6,3182.5,2.5378]
[1764804799852,3.2078,3183.4,3183.3,1.9432]
[1764804800050,3.2078,3183.4,3183.3,4.65287407]
[1764804800245,3.2078,3184.0,3183.3,4.65287407]
[1764804800451,3.2078,3184.0,3183.9,1.9432]
[1764804800864,3.2115535,3184.0,3183.9,1.9432]
[1764804801060,0.0037535,3184.0,3183.9,1.9432]
[1764804802473,2.0202535,3184.0,3183.9,1.9432]
[1764804802771,0.9967535,3184.0,3183.9,1.9432]
[1764804803268,0.0037535,3184.0,3183.9,1.9432]
[1764804807279,0.0037535,3184.0,3183.6,0.00470995]
[1764804807479,2.0165,3183.7,3183.6,0.98850995]
[1764804807775,2.0202535,3184.0,3183.9,0.9838]
[1764804807977,2.0202535,3184.0,3183.9,1.9432]
[1764804809268,0.9967535,3184.0,3183.9,1.9432]
[1764804809468,2.0202535,3184.0,3183.9,1.9432]
[1764804810183,2.0202535,3184.0,3183.9,0.9838]
[1764804810971,2.0165,3183.7,3183.6,0.00470995]
[1764804811680,2.0165,3183.7,3183.6,0.98850995]
[1764804811886,2.0165,3183.7,3183.6,1.94790995]
[1764804812280,4.2045535,3184.0,3183.9,1.9432]
[1764804812779,5.2280535,3184.0,3183.9,1.9432]
[1764804813976,4.2045535,3184.0,3183.9,1.9432]
[1764804814273,0.0037535,3184.0,3183.9,1.9432]
[1764804814480,1.0691535,3184.0,3183.9,1.9432]
[1764804815376,0.0037535,3184.0,3183.9,1.9432]
[1764804816877,5.3091,3185.2,3185.1,1.026]
[1764804817075,2.1013,3185.1,3185.0,1.6695]
[1764804817877,2.10471038,3185.1,3185.0,1.6726967]
[1764804818678,2.10471038,3185.1,3185.0,0.6466967]
[1764804819481,2.10471038,3185.1,3185.0,1.6233967]
[1764804819886,2.10471038,3185.1,3185.0,2.6893967]
[1764804820277,0.99231038,3185.1,3185.0,2.6893967]
[1764804820491,2.01421038,3185.1,3185.0,2.6893967]
[1764804821375,2.01421038,3185.1,3185.0,1.6233967]
[1764804823385,2.01421038,3185.1,3185.0,2.6893967]
[1764804823581,0.00341038,3185.1,3185.0,2.6893967]
[1764804823779,2.01421038,3185.1,3185.0,2.6893967]
[1764804825690,2.01421038,3185.1,3185.0,0.6466967]
[1764804826792,2.01421038,3185.1,3185.0,0.0031967]
[1764804826987,2.32017528,3185.1,3185.0,0.0031967]
[1764804827187,7.33127528,3185.1,3184.1,0.8420596]
[1764804827393,0.9889,3184.2,3184.1,2.8847596]
[1764804827589,3.2078,3184.8,3184.1,2.8847596]
[1764804828288,3.2078,3184.8,3184.2,0.8420596]
[1764804829396,2.0076,3184.3,3184.2,2.8847596]
[1764804829688,2.0076,3184.3,3184.2,2.0427]
[1764804829901,2.0076,3184.2,3184.1,0.00373249]
[1764804831695,2.0076,3184.2,3184.1,0.98043249]
[1764804831891,0.1832,3183.5,3183.3,0.8420596]
[1764804832090,0.1832,3182.8,3182.7,2.0427]
[1764804832395,3.5742,3182.8,3182.7,2.0427]
[1764804832587,3.5742,3182.8,3182.7,0.9767]
[1764804832789,0.1832,3182.1,3182.0,2.6817]
[1764804832987,3.2078,3182.3,3182.2,2.0427]
[1764804833193,3.391,3182.3,3182.2,2.0427]
[1764804833698,3.2078,3182.3,3182.2,2.0427]
[1764804835098,3.391,3182.3,3182.2,2.0427]
[1764804835293,3.5742,3182.3,3182.2,0.9767]
[1764804835594,0.1832,3182.1,3182.0,2.68405371]
[1764804836097,3.5742,3182.3,3182.2,0.9767]
[1764804836489,0.3664,3182.1,3182.0,1.61805371]
[1764804836698,0.1832,3182.1,3182.0,2.68405371]
[1764804837292,3.5742,3182.3,3182.2,0.9767]
[1764804837890,3.5742,3182.3,3182.0,0.64135371]
[1764804837891,0.1832,3182.1,3182.0,1.61805371]
[1764804838092,0.1832,3182.1,3182.0,2.68405371]
[1764804839389,3.391,3182.3,3182.2,2.0427]
[1764804839587,3.2078,3182.3,3182.2,2.0427]
[1764804839790,0.00470995,3182.4,3182.3,2.0427]
[1764804842400,2.02490995,3182.4,3182.3,0.9767]
[1764804842696,2.0202,3182.1,3182.0,0.00235371]
[1764804843501,0.9889,3182.1,3182.0,1.96535371]
[1764804843798,0.00470995,3182.4,3182.3,2.427]
[1764804845799,9.95e-06,3182.4,3182.3,5.6348]
[1764804850306,9.95e-06,3182.4,3182.3,9.4228]
[1764804850806,9.95e-06,3182.4,3182.3,6.9958]
[1764804851804,3.2078,3183.2,3183.1,2.427]
[1764804852010,5.6588,3183.2,3183.1,2.427]
[1764804852602,3.2078,3183.2,3183.1,2.427]
[1764804852810,1.40150995,3183.5,3183.4,2.427]
[1764804853110,2.45812928,3183.5,3183.4,2.427]
[1764804853702,3.28682928,3183.5,3183.0,0.7962]
[1764804854507,2.45812928,3183.5,3183.4,2.427]
[1764804855411,2.45812928,3183.5,3183.4,1.4407]
[1764804855608,1.3968,3183.1,3183.0,3.2232]
[1764804856114,1.3968,3182.6,3182.5,3.2232]
[1764804856706,3.2078,3183.1,3183.0,0.7962]
[1764804857020,3.21492928,3183.5,3183.4,2.427]
[1764804857317,0.00712928,3183.5,3183.4,2.427]
[1764804871318,5.6588,3184.4,3184.3,1.4407]
[1764804871510,5.98733741,3184.4,3184.3,1.4407]
[1764804871710,4.93313741,3184.4,3184.3,2.427]
[1764804871916,4.6046,3184.9,3184.5,0.7962]
[1764804872118,4.6046,3184.9,3184.8,2.427]
[1764804872313,4.6046,3184.9,3184.8,2.43015945]
[1764804872314,4.60743332,3184.9,3184.8,2.43015945]
[1764804872518,5.66163332,3184.9,3184.8,2.43015945]
[1764804872921,4.60743332,3184.9,3184.8,2.43015945]
[1764804873424,3.21063332,3184.9,3184.8,2.43015945]
[1764804873626,5.99783332,3184.9,3184.8,2.43015945]
[1764804873822,5.99783332,3184.9,3184.8,1.44385945]
[1764804874725,5.99783332,3184.9,3184.8,0.00315945]
[1764804875018,6.32671969,3184.9,3184.8,0.00315945]
[1764804876322,6.32671969,3184.9,3184.8,1.25665945]
[1764804876529,4.53363332,3184.9,3184.8,2.69805945]
[1764804877028,5.99783332,3184.9,3184.8,2.69805945]
[1764804877829,5.99783332,3184.9,3184.8,0.00315945]
[1764804878532,5.99783332,3184.9,3184.8,2.69805945]
[1764804879021,5.99783332,3184.9,3184.8,1.25665945]
[1764804880029,5.99783332,3184.9,3184.8,0.00315945]
[1764804883236,6.3278176,3184.9,3184.8,0.00315945]
[1764804884338,6.32787127,3184.9,3184.8,0.00315945]
[1764804891443,2.5141,3183.8,3183.7,6.9245898]
[1764804891645,2.5141,3183.8,3183.7,5.8007]
[1764804892342,2.5141,3183.8,3183.7,5.80309331]
[1764804896150,2.5141,3183.8,3183.7,3.21019331]
[1764804896336,2.5141,3183.8,3183.7,4.50459331]
[1764804897144,2.5141,3183.8,3183.7,5.80309331]
[1764804897344,2.5141,3183.8,3183.7,6.64789778]
[1764804897943,2.5141,3183.8,3183.7,5.34939778]
[1764804900139,2.5141,3183.8,3183.7,0.00239331]
[1764804900339,2.84537538,3183.8,3183.4,0.00470995]
[1764804900642,3.262,3183.5,3183.4,0.00470995]
[1764804900845,3.59321077,3183.5,3183.4,0.00470995]
[1764804901041,3.59322202,3183.5,3183.4,0.00470995]
[1764804901347,6.80102202,3183.5,3183.4,0.00864482]
[1764804901739,3.262,3183.0,3182.9,2.13920447]
[1764804901939,3.262,3183.0,3182.9,0.84480447]
[1764804902241,2.5141,3182.9,3182.8,5.34700447]
[1764804902843,2.5141,3182.9,3182.8,5.35055315]
[1764804903043,2.5141,3182.9,3182.8,3.21134868]
[1764804903544,2.5141,3182.9,3182.8,4.50574868]
[1764804905048,2.5141,3182.9,3182.8,5.75164868]
[1764804907748,2.5141,3182.9,3182.8,4.50574868]
[1764804907947,2.5141,3182.9,3182.8,3.21134868]
[1764804908146,0.7479,3183.0,3182.5,0.84951442]
[1764804908147,2.34,3182.6,3182.5,0.00470995]
[1764804908347,5.5478,3182.6,3182.5,0.00470995]
[1764804908651,2.34,3182.1,3182.0,1.1063]
[1764804909153,0.7217,3182.0,3181.5,1.1063]
[1764804909349,2.34,3181.6,3181.5,1.10966328]
[1764804910742,2.34,3181.6,3181.5,0.00336328]
[1764804919946,2.34,3181.6,3181.5,2.35556328]
[1764804920348,2.34,3181.6,3181.5,1.10966328]
[1764804920555,2.34,3181.6,3181.5,2.35556328]
[1764804920744,1.13,3181.6,3181.5,3.06776328]
[1764804920949,1.13,3182.0,3181.9,2.3522]
[1764804921150,2.34,3181.6,3181.5,4.95183526]
[1764804921358,2.34,3181.6,3181.5,4.23963526]
[1764804922553,3.0617,3182.0,3181.9,1.1063]
[1764804922764,1.13,3182.0,3181.9,2.3522]
[1764804923055,2.34,3182.0,3181.9,2.3522]
[1764804923858,2.34,3181.6,3181.5,2.35556328]
[1764804924058,2.34,3181.6,3181.5,1.10966328]
[1764804924362,2.34,3181.6,3181.5,2.35556328]
[1764804925159,0.7217,3182.0,3181.5,2.35556328]
[1764804925160,0.7217,3182.0,3181.5,3.06776328]
[1764804925355,1.13,3181.6,3181.5,3.06776328]
[1764804925964,2.34,3181.6,3181.5,3.06776328]
[1764804926364,2.34,3181.6,3181.5,2.35556328]
[1764804926660,2.34,3181.6,3181.5,1.10966328]
[1764804927161,2.34,3181.6,3181.5,0.00336328]
[1764804927860,2.34,3181.3,3181.2,1.11100995]
[1764804928358,2.34470995,3181.6,3181.5,2.3522]
[1764804928863,2.34470995,3181.6,3181.5,2.355854]
[1764804929364,2.34470995,3181.6,3181.5,1.109954]
[1764804929661,2.34470995,3181.6,3181.5,0.003654]
[1764804931265,2.67503384,3181.6,3181.5,0.003654]
[1764804932867,2.67503384,3181.6,3181.5,1.109954]
[1764804933862,2.67503384,3181.6,3181.5,2.248654]
[1764804934457,0.33503384,3181.6,3181.5,2.861254]
[1764804934661,0.00470995,3181.6,3181.5,2.861254]
[1764804937964,0.33548565,3181.6,3181.5,2.861254]
[1764804938261,2.10000995,3181.6,3181.5,2.861254]
[1764804938466,2.43078565,3181.6,3181.5,2.861254]
[1764804939569,2.43078565,3181.6,3181.5,0.8504925]
[1764804939767,2.43078565,3181.6,3181.5,0.003654]
[1764804940669,2.43078565,3181.6,3181.5,1.013454]
[1764804941067,2.43078565,3181.6,3181.5,0.003654]
[1764804943460,2.0538,3181.3,3181.2,0.00470995]
[1764804943658,2.0538,3180.8,3180.7,0.8468385]
[1764804943973,2.0538,3180.7,3180.6,4.0546385]
[1764804944172,2.3845757,3180.7,3180.6,3.2078]
[1764804944375,2.3845757,3180.7,3180.6,5.2839]
[1764804944568,2.3845757,3180.7,3180.6,5.28722861]
[1764804944764,2.3845757,3180.7,3180.6,3.21112861]
[1764804945071,2.3845757,3180.7,3180.6,0.00332861]
[1764804946364,2.3845757,3180.7,3180.3,0.00470995]
[1764804946571,3.2078,3180.8,3180.3,0.00470995]
[1764804946572,2.0538,3180.4,3180.3,0.00470995]
[1764804946767,2.3845757,3180.4,3180.3,0.00470995]
[1764804947371,2.3845757,3180.4,3180.3,0.00858195]
[1764804949479,2.3845757,3180.4,3180.3,2.08468195]
[1764804949680,1.3789757,3180.4,3180.3,2.08468195]
[1764804949880,0.3307757,3180.4,3180.3,2.08468195]
[1764804950076,2.38329644,3180.7,3180.6,1.0098]
[1764804950270,2.38320367,3180.7,3180.6,1.0098]
[1764804950469,2.0538,3180.4,3180.3,0.00858195]
[1764804950674,2.38320367,3180.4,3180.3,2.08468195]
[1764804951078,2.38320367,3180.4,3180.3,0.00858195]
[1764804951280,2.0538,3180.4,3180.3,0.00858195]
[1764804951587,2.38269689,3180.4,3180.3,0.00858195]
[1764804952683,2.38269689,3180.4,3180.3,2.08468195]
[1764804953077,2.38269689,3180.4,3180.3,1.01838195]
[1764804953785,2.38269689,3180.4,3180.3,0.00858195]
[1764804954480,0.32889689,3180.4,3180.3,2.08468195]
[1764804954686,2.0538,3180.4,3180.3,3.21638195]
[1764804955694,2.0538,3180.4,3180.3,4.22618195]
[1764804956085,2.0538,3180.4,3180.3,3.21638195]
[1764804956887,2.07104985,3180.4,3180.3,0.00858195]
[1764804957288,0.01724985,3180.4,3180.3,2.08468195]
[1764804957492,2.07104985,3180.4,3180.3,1.01838195]
[1764804959190,2.07104985,3180.4,3180.3,0.00858195]
[1764804960992,2.6364,3180.0,3179.9,3.2078]
[1764804961695,2.6364,3180.0,3179.9,4.2176]
[1764804961897,2.65364985,3180.0,3179.9,4.2176]
[1764804962097,2.65364985,3180.0,3179.9,5.28732939]
[1764804962597,2.65364985,3180.0,3179.9,4.22102939]
[1764804963891,2.65364985,3180.0,3179.9,5.28732939]
[1764804964396,2.65364985,3180.0,3179.9,4.22102939]
[1764804964699,2.65364985,3180.0,3179.9,3.21122939]
[1764804965300,2.65364985,3180.0,3179.9,5.24492939]
[1764804965502,2.07104985,3180.0,3179.9,5.24492939]
[1764804966600,2.07104985,3180.0,3179.9,4.18682939]
[1764804967505,2.38724985,3180.0,3179.9,4.18682939]
[1764804967697,2.38724985,3180.0,3179.9,0.00342939]
[1764804968794,2.38724985,3180.0,3179.9,0.97902939]
[1764804969395,2.38724985,3180.0,3179.9,2.03712939]
[1764804969596,2.07104985,3180.0,3179.9,2.03712939]
[1764804970604,0.01724985,3180.0,3179.9,2.03712939]
[1764804970801,1.88844985,3180.0,3179.9,2.03712939]
[1764804971293,2.21828893,3180.0,3179.9,2.03712939]
[1764804971493,0.01724985,3180.0,3179.9,5.24492939]
[1764804971702,0.01724985,3180.0,3179.9,11.24492939]
[1764804972200,3.15461082,3180.0,3179.9,2.03712939]
[1764804972403,5.079,3180.4,3180.3,2.0337]
[1764804972600,4.43157253,3180.4,3180.3,2.0337]
[1764804972802,0.33017253,3180.4,3180.3,2.0337]
[1764804973003,3.2078,3180.8,3180.7,2.0337]
[1764804973307,3.53809063,3180.8,3180.7,2.88015804]
[1764804973694,0.33029063,3180.8,3180.7,5.2415]
[1764804973893,0.8936,3181.3,3181.2,2.0337]
[1764804974098,1.22409895,3181.3,3181.2,2.0337]
[1764804974300,2.20169895,3181.3,3181.2,2.0337]
[1764804974895,1.22409895,3181.3,3181.2,2.0337]
[1764804975407,2.20169895,3181.3,3181.2,2.0337]
[1764804977212,1.22409895,3181.3,3181.2,2.0337]
[1764804977407,2.20169895,3181.3,3181.2,2.0337]
[1764804978005,2.20169895,3181.3,3181.2,0.9756]
[1764804978207,1.8712,3181.1,3181.0,2.0337]
[1764804978509,2.20169895,3181.1,3181.0,2.0337]
[1764804980607,0.33049895,3181.1,3181.0,2.6009]
[1764804980908,4.1014,3181.4,3181.3,2.0337]
[1764804981107,5.40885459,3181.4,3181.3,2.0337]
[1764804981904,4.43125459,3181.4,3181.3,2.0337]
[1764804982207,0.00470995,3181.6,3181.5,2.6009]
[1764804983407,0.00398929,3182.1,3182.0,2.6009]
[1764804983608,0.00398929,3182.1,3182.0,5.8087]
[1764804983907,0.00398929,3182.1,3182.0,6.65278722]
[1764804984307,0.00398929,3182.1,3182.0,5.8087]
[1764804984510,0.00470995,3182.4,3182.3,2.0337]
[1764804985513,0.00779061,3182.4,3182.3,2.03684796]
[1764804994721,1.76569061,3182.4,3182.3,0.97874796]
[1764804994922,1.76569061,3182.4,3182.3,0.00314796]
[1764804995614,1.76569061,3182.4,3182.3,1.83794796]
[1764804997020,1.76569061,3182.4,3182.3,0.89394796]
[1764804997422,1.76569061,3182.4,3182.3,1.83794796]
[1764805002925,1.76569061,3182.4,3182.3,0.89394796]
[1764805003126,1.76569061,3182.4,3182.3,0.00314796]
[1764805003534,0.00779061,3182.4,3182.3,1.66244796]
[1764805004429,4.9436,3183.2,3183.1,1.6593]
[1764805004633,5.27435178,3183.2,3183.1,1.6593]
[1764805005027,2.2123,3184.0,3183.9,0.6702]
[1764805005326,0.47938109,3184.0,3183.9,0.6702]
[1764805005521,2.21518109,3184.0,3183.9,0.6702]
[1764805006030,2.21518109,3184.0,3183.9,0.3351]
[1764805009237,1.7358,3183.8,3183.7,3.2078]
[1764805009530,1.7358,3183.7,3183.6,0.00470995]
[1764805009937,1.7358,3183.7,3183.6,9.95e-06]
[1764805011435,1.7358,3183.7,3183.6,0.33980995]
[1764805014131,0.8563,3183.7,3183.6,9.95e-06]
[1764805014337,0.8563,3183.7,3183.6,0.33980995]
[1764805014537,1.7358,3183.7,3183.6,0.67960995]
[1764805014738,1.7358,3183.7,3183.6,0.33980995]
[1764805015033,2.21518109,3184.0,3183.9,0.3398]
[1764805015538,1.35888109,3184.0,3183.9,0.6796]
[1764805015838,0.47938109,3184.0,3183.9,0.6796]
[1764805016039,0.00288109,3184.0,3183.9,0.6796]
[1764805016731,0.00288109,3184.0,3183.7,3.2078]
[1764805016732,1.7358,3183.8,3183.7,3.2078]
[1764805016933,1.7358,3183.8,3183.7,3.8874]
[1764805017134,0.8795,3183.8,3183.7,3.8874]
[1764805018139,1.7358,3183.8,3183.7,3.8874]
[1764805019644,1.7358,3183.8,3183.7,3.2078]
[1764805020740,2.06267746,3183.8,3183.7,3.2078]
[1764805020939,2.06267746,3183.8,3183.6,9.95e-06]
[1764805020940,6.32687746,3183.8,3183.6,9.95e-06]
[1764805021144,3.53467746,3183.7,3183.6,9.95e-06]
[1764805023143,1.7358,3182.8,3182.7,0.7958]
[1764805023346,1.7044,3182.4,3182.3,1.66244796]
[1764805023646,1.7044,3182.4,3182.3,1.85294796]
[1764805024744,0.8795,3182.4,3182.3,1.85294796]
[1764805024948,1.93700995,3182.7,3182.6,1.026]
[1764805025854,1.9323,3182.4,3182.3,1.85294796]
[1764805027051,1.93700995,3182.7,3182.6,1.8498]
[1764805027243,0.8249,3182.6,3182.5,1.026]
[1764805027444,1.9323,3182.6,3182.5,1.026]
[1764805028750,1.9323,3182.4,3182.3,0.00314796]
[1764805028936,5.1401,3182.4,3182.3,0.00314796]
[1764805029546,1.1074,3182.4,3182.3,1.85294796]
[1764805030247,1.93700995,3182.7,3182.6,1.8498]
[1764805030454,2.26352371,3182.7,3182.6,1.8498]
[1764805030844,1.9323,3182.4,3182.3,1.85294796]
[1764805032247,1.9323,3182.1,3182.0,0.00470995]
[1764805032651,1.9323,3182.1,3182.0,2.49360995]
[1764805032846,1.9323,3182.1,3182.0,1.85450995]
[1764805033047,1.9323,3182.1,3182.0,1.03070995]
[1764805033250,1.9323,3182.1,3182.0,1.03364499]
[1764805033450,1.9323,3182.1,3182.0,0.00764499]
[1764805034255,1.9323,3182.1,3182.0,1.03364499]
[1764805035659,1.9323,3182.1,3182.0,0.00764499]
[1764805036654,1.9323,3182.1,3181.5,3.7208]
[1764805036655,1.9323,3181.6,3181.0,3.7208]
[1764805036859,1.9323,3181.1,3181.0,5.5706]
[1764805037756,1.93603679,3181.1,3181.0,5.573805]
[1764805037952,1.93603679,3181.1,3181.0,2.366005]
[1764805038155,1.93603679,3181.1,3181.0,1.853005]
[1764805038356,1.93603679,3181.1,3181.0,1.029205]
[1764805038755,1.93603679,3181.1,3181.0,1.853005]
[1764805039753,1.11113679,3181.1,3181.0,2.492105]
[1764805041864,1.93603679,3181.1,3181.0,2.492105]
[1764805042866,1.11113679,3181.1,3181.0,2.492105]
[1764805044562,0.00373679,3181.1,3181.0,2.492105]
[1764805044862,5.1401,3181.7,3181.6,1.8498]
[1764805045057,5.1401,3181.7,3181.0,3.850105]
[1764805045258,3.2078,3181.7,3181.0,5.699905]
[1764805045769,3.21175908,3181.7,3181.0,5.699905]
[1764805045970,4.31915908,3181.7,3181.6,1.026]
[1764805046265,4.31915908,3181.7,3181.0,4.673905]
[1764805049463,1.1074,3181.1,3181.0,5.699905]
[1764805049769,2.5433,3181.5,3181.4,1.026]
[1764805050168,2.5433,3181.5,3181.0,3.850105]
[1764805050463,1.9323,3181.5,3181.4,1.8498]
[1764805050972,3.21175908,3181.7,3181.6,1.8498]
[1764805050973,4.31915908,3181.7,3181.6,1.8498]
[1764805051464,3.21175908,3181.7,3181.6,1.8498]
[1764805051863,0.00395908,3181.7,3181.6,1.8498]
[1764805053261,1.93625908,3181.7,3181.6,1.8498]
[1764805053469,1.93625908,3181.7,3181.6,2.1213]
[1764805053868,0.9208,3181.2,3181.1,2.0547]
[1764805054173,0.00395908,3181.7,3181.1,2.0547]
[1764805054464,0.33148467,3181.7,3181.1,2.0547]
[1764805055370,2.36958467,3181.7,3181.6,0.9594]
[1764805055771,2.36958467,3181.7,3181.0,3.850105]
[1764805055972,2.04205908,3181.7,3181.0,3.850105]
[1764805056171,0.32793832,3181.6,3181.0,3.850105]
[1764805056373,2.36603832,3181.6,3181.5,0.9594]
[1764805056570,2.36603832,3181.6,3181.5,2.0547]
[1764805058774,2.36603832,3181.6,3181.5,0.9594]
[1764805059277,2.36603832,3181.6,3181.0,4.97871572]
[1764805059475,0.9208,3181.6,3181.5,2.4998]
[1764805059673,2.21749159,3181.6,3181.5,2.4998]
[1764805060573,0.32819159,3181.6,3181.5,2.4998]
[1764805060779,0.00395908,3181.7,3181.6,1.9166]
[1764805060981,0.33238217,3181.7,3181.6,1.9166]
[1764805061179,0.33239404,3181.7,3181.6,1.9166]
[1764805061880,2.24239404,3181.7,3181.6,0.9548]
[1764805062178,2.24239404,3181.7,3181.6,1.9166]
[1764805064181,2.24239404,3181.7,3181.6,0.9548]
[1764805064680,2.24239404,3181.7,3181.6,1.9166]
[1764805064979,0.33239404,3181.7,3181.6,1.9166]
[1764805065974,1.27389404,3181.7,3181.6,1.9166]
[1764805066478,2.24239404,3181.7,3181.6,1.9166]
[1764805066684,2.24239404,3181.7,3181.6,0.9548]
[1764805066977,2.24239404,3181.7,3181.6,1.9166]
[1764805067182,1.27389404,3181.7,3181.6,1.9166]
[1764805067682,0.33239404,3181.7,3181.6,1.9166]
[1764805068182,1.27389404,3181.7,3181.6,1.9166]
[1764805069484,2.24239404,3181.7,3181.6,1.9166]
[1764805069683,1.27389404,3181.7,3181.6,1.9166]
[1764805070280,2.24239404,3181.7,3181.6,1.9166]
[1764805070874,2.24239404,3181.7,3181.6,0.9548]
[1764805072581,2.24239404,3181.7,3181.6,1.9166]
[1764805073783,5.45019404,3181.7,3181.6,1.9166]
[1764805076786,5.45019404,3181.7,3181.6,0.9548]
[1764805077189,5.45123364,3181.7,3181.6,0.9548]
[1764805077390,1.91,3181.5,3181.4,3.04521072]
[1764805077591,2.23947456,3181.5,3181.4,3.04521072]
[1764805078091,2.78697456,3181.5,3181.4,0.9548]
[1764805078292,2.78697456,3181.5,3181.4,1.9166]
[1764805079093,2.78697456,3181.5,3181.4,0.9548]
[1764805079893,1.91,3181.3,3181.2,3.04521072]
[1764805080192,2.23947456,3181.3,3181.2,3.04521072]
[1764805082294,2.23947456,3181.3,3181.2,1.9166]
[1764805082595,5.44727456,3181.3,3181.2,3.04723706]
[1764805082795,1.91,3181.2,3181.1,2.08543706]
[1764805082991,2.23947456,3181.2,3181.1,1.13063706]
[1764805083195,1.91,3181.1,3181.0,2.08864206]
[1764805083495,2.23947456,3181.1,3181.0,3.05044206]
[1764805083790,0.32947456,3181.1,3181.0,3.62844206]
[1764805083990,3.2078,3181.2,3181.1,1.9445]
[1764805084187,3.53706899,3181.2,3181.1,1.9445]
[1764805084388,4.49766899,3181.2,3181.1,1.9445]
[1764805085185,0.32926899,3181.2,3181.1,3.07513706]
[1764805085387,3.21175908,3181.7,3181.5,2.5225]
[1764805085593,0.32913402,3181.6,3181.5,2.5225]
[1764805086284,0.32913402,3181.6,3181.5,3.65313706]
[1764805086488,0.32913402,3181.6,3181.5,3.74469144]
[1764805087492,3.21175908,3181.7,3181.6,1.9445]
[1764805087688,0.00470995,3182.7,3182.5,0.578]
[1764805087689,3.21250995,3182.7,3182.5,0.578]
[1764805087896,2.95613703,3183.7,3183.1,1.9445]
[1764805087897,3.2078,3183.2,3183.1,1.9445]
[1764805088097,3.2078,3183.2,3183.1,3.16669144]
[1764805088597,3.21150316,3183.2,3183.1,3.16669144]
[1764805088802,0.00370316,3183.2,3183.1,3.16669144]
[1764805089099,0.00470995,3183.5,3183.4,1.9445]
[1764805089898,0.00470995,3183.5,3183.4,3.16669144]
[1764805090100,0.00700543,3183.5,3183.4,3.16998495]
[1764805090296,0.96760543,3183.5,3183.4,1.94779351]
[1764805090493,1.89520543,3183.5,3183.4,1.94779351]
[1764805090699,2.46470543,3183.5,3183.4,0.00329351]
[1764805093395,2.46470543,3183.5,3183.4,1.94779351]
[1764805093795,2.46470543,3183.5,3183.4,0.00329351]
[1764805094809,2.46470543,3183.5,3183.4,0.95839351]
[1764805094995,2.46470543,3183.5,3183.4,0.00329351]
[1764805102708,0.57650543,3183.5,3182.8,1.94920995]
[1764805102915,4.1684,3183.0,3182.9,1.9445]
[1764805103410,3.2078,3183.0,3182.9,1.9445]
[1764805103813,4.1684,3183.0,3182.9,1.94726181]
[1764805104314,5.096,3183.0,3182.9,1.94726181]
[1764805104707,5.6655,3183.0,3182.9,1.94726181]
[1764805104907,5.6655,3183.0,3182.9,0.00276181]
[1764805107414,0.9606,3182.1,3182.0,2.5225]
[1764805108108,1.8882,3182.1,3182.0,2.5225]
[1764805108309,1.8882,3182.1,3182.0,2.52554375]
[1764805108906,0.9606,3182.1,3182.0,2.52554375]
[1764805109506,0.5695,3182.5,3182.0,2.52554375]
[1764805111020,2.4577,3182.5,3182.4,0.9551]
[1764805113021,2.4577,3182.5,3182.0,0.58104375]
[1764805113219,0.9606,3182.1,3182.0,2.52554375]
[1764805113622,2.5222,3182.5,3182.4,0.9551]
[1764805115222,2.84678548,3182.5,3182.4,0.9551]
[1764805115621,0.944,3182.1,3182.0,2.51444375]
[1764805116017,2.5056,3182.5,3182.4,0.932]
[1764805116217,2.83019936,3182.5,3182.4,0.932]
[1764805116924,0.944,3182.1,3182.0,2.51444375]
[1764805117424,1.9361,3182.1,3182.0,2.51444375]
[1764805118126,0.944,3182.1,3182.0,2.51444375]
[1764805119329,5.0604,3182.4,3182.3,1.8126]
[1764805119529,5.38528669,3182.4,3182.3,1.8126]
[1764805119928,5.38528669,3182.4,3182.3,0.932]
[1764805121229,0.8887,3182.1,3182.0,2.41664375]
[1764805121430,1.7973,3182.1,3182.0,2.41664375]
[1764805122027,5.0051,3182.9,3182.8,1.8356]
[1764805122233,5.33032894,3182.9,3182.8,1.8356]
[1764805122434,3.53302894,3182.9,3182.8,1.8356]
[1764805122828,0.32522894,3182.9,3182.8,1.8356]